Cogmind - Beta 14 @@@ ROGUE MODE // 2024.11.27 @ 00:20:02 Player: akira Result: Destroyed by PE-9CN(R) with Subdweller Beam Cannon Performance ------------- Evolutions (0) 0 Regions Visited (3) 600 Robots Destroyed (33) 165 Value Destroyed (881) 881 Prototype IDs (4) 80 Alien Tech Used (0) 0 Bonus (0) 0 TOTAL SCORE: 1726 Bonus ------- None Cogmind --------- Core Integrity 0/250 Matter 278/300 Energy 125/125 System Corruption 3% Temperature Cool (9) Movement Rolling (130) Ox2 Location -10/Subcaves Parts ------- > --- POWER (1) -------- Light Ion Engine (fused) > --- PROPULSION (2) --- Compact Wheel > --- UTILITY (2) ------ Large Storage Unit Light Armor Plating > --- WEAPON (2) ------- Subdweller Machine Gun Light Cannon > --- INVENTORY (15) --- Aluminum Leg Aluminum Leg Aluminum Leg Makeshift Leg Structural Scanner Visual Processing Unit Scrap Shield Hacking Suite Subdweller Beam Cannon Light Assault Rifle Subdweller Machine Gun Enhanced Flamer Mining Claw Peak State ------------ > --- POWER ------------ Subdweller Power Source > --- PROPULSION ------- Light Treads Spiked Treads > --- UTILITY ---------- Large Storage Unit Subdweller Optics > --- WEAPON ----------- Barrage Gun Enhanced Flamer > --- INVENTORY -------- Light Ion Engine Aluminum Leg Aluminum Leg Aluminum Leg Compact Wheel Subdweller Monowheel Structural Scanner Visual Processing Unit Light Armor Plating Hacking Suite Subdweller Beam Cannon Light Assault Rifle Subdweller Machine Gun Light Cannon Mining Claw [Rating: 16] Favorites ----------- Power Light Ion Engine Engine Light Ion Engine Power Core Light Nuclear Core Propulsion Light Treads Treads Light Treads Wheel Compact Wheel Utility Large Storage Unit Device Improved Terrain Scanner Storage Large Storage Unit Protection Light Armor Plating Weapon Subdweller Machine Gun Energy Gun Particle Gun Ballistic Gun Subdweller Machine Gun Ballistic Cannon Light Cannon Special Weapon Enhanced Flamer Slashing Weapon Mining Claw Build | -11 -10 -10 -10 ------- Run | Yrd Mat Min Sub Slots Evolved . | . . . . Power . | . . . . Propulsion . | . . . . Utility . | . . . . Weapon . | . . . . Parts Attached 37 | 7 12 2 16 Power 7 | 1 3 . 3 Engine 6 | 1 2 . 3 Core 1 | . 1 . . Reactor . | . . . . Propulsion 8 | 2 2 . 4 Treads 6 | 2 2 . 2 Leg . | . . . . Wheel 2 | . . . 2 Hover . | . . . . Flight . | . . . . Utility 7 | 1 4 . 2 Device 4 | . 3 . 1 Storage 2 | 1 1 . . Processor . | . . . . Hackware . | . . . . Protection 1 | . . . 1 Artifact . | . . . . Weapon 15 | 3 3 2 7 Energy Gun 3 | 2 1 . . Energy Cannon . | . . . . Ballistic Gun 6 | 1 2 . 3 Ballistic Cannon 3 | . . 1 2 Launcher . | . . . . Special Weapon 1 | . . . 1 Impact Weapon . | . . . . Slashing Weapon 2 | . . 1 1 Piercing Weapon . | . . . . Special Melee Weapon . | . . . . Unidentified Prototypes . | . . . . Parts Lost 9 | . 3 1 5 Power 1 | . . . 1 Propulsion 4 | . 1 . 3 Utility 1 | . 1 . . Weapon 3 | . 1 1 1 Highest Loss Streak 2 | . 2 1 1 To Critical Strikes . | . . . . Average Slot Usage (%) 96 | . 97 98 94 Engine 11 | . 7 14 14 Core 2 | . 6 . . Treads 20 | . 27 28 13 Wheel 5 | . . . 9 Device 7 | . 12 14 3 Storage 14 | . 14 14 14 Protection 5 | . . . 9 Energy Gun 4 | . 10 . . Ballistic Gun 19 | . 17 13 21 Ballistic Cannon 2 | . . 11 4 Slashing Weapon 1 | . . . 2 Peak Build Rating 16 | 6 13 11 16 Average Rating 10 | 4 10 9 11 On Entrance 6 | . 6 11 10 Naked Turns . | . . . . Heaviest Build 36 | 11 30 31 36 Greatest Support 40 | 40 40 40 40 Greatest Overweight (x) 2 | 1 . . 2 Average Overweight (x) . | . . . 1 Largest Inventory Capacity 15 | 8 15 15 15 Average Capacity 12 | 6 9 15 15 Most Carried 15 | 7 12 12 15 Average Carried 11 | 5 8 11 13 Final Capacity 15 | 8 15 15 15 Final Carried 14 | 6 11 11 14 Class Distribution -------------------- 67% | Mutant 32% | Scavenger-Mutant Dominant Class ---------------- Scavenger-Mutant | -10/Materials Scavenger-Mutant | -10/Mines Mutant | -10/Subcaves Resources | -11 -10 -10 -10 ----------- Run | Yrd Mat Min Sub Matter Collected 1018 | 191 330 39 458 Remotely . | . . . . Salvage Created 950 | . 667 53 230 Parts 63 | . 47 3 13 Haulers Intercepted 1 | . 1 . . Recyclers Shooed . | . . . . Parts Field Recycled . | . . . . Retrieved Matter . | . . . . Parts Self-Destructed 7 | . . . 7 Prevented . | . . . . Kills | -11 -10 -10 -10 ------- Run | Yrd Mat Min Sub Combat Hostiles Destroyed 27 | . 17 3 7 Guns 22 | . 17 2 3 Cannons 5 | . . 1 4 Classes Destroyed 7 | . 6 . 1 Tunneler 1 | . 1 . . Hauler 1 | . 1 . . Operator 1 | . 1 . . Watcher 3 | . 3 . . Swarmer 8 | . 6 2 . Grunt 14 | . 11 1 2 Subdweller 5 | . . . 5 Best Kill Streak 3 | . 3 2 2 Combat Bots Only 3 | . 3 2 2 Max Kills in Single Turn 2 | . 2 1 1 Gunslinging 1 | . 1 . . Exploded . | . . . . Melee . | . . . . Uniques/NPCs Destroyed . | . . . . Combat | -11 -10 -10 -10 -------- Run | Yrd Mat Min Sub Hostile Shots Fired 166 | . 104 20 42 Missed 41 | . 22 6 13 Damage Taken 1676 | . 933 131 612 Core 270 | . 169 . 101 Absorbed by Shields . | . . . . Core Remaining (%) 100 | 100 . . . Volleys Fired 134 | . 84 18 32 Largest 2 | . 2 2 2 Hottest 115 | . 85 85 115 Shots Fired 247 | . 160 31 56 Gun 211 | . 160 19 32 Cannon 32 | . . 12 20 Launcher . | . . . . Special 4 | . . . 4 Kinetic 204 | . 123 29 52 Thermal 41 | . 35 2 4 Explosive . | . . . . Electromagnetic 2 | . 2 . . Robot Hit Streak 11 | . 11 11 9 Robot Miss Streak 4 | . 4 2 2 Penetration Max . | . . . . Secondary Targets 2 | . 1 1 . Max Gunslinging Chain 1 | . 1 1 . Shots Hit Robots 146 | . 103 13 30 Core Hits 63 | . 45 6 12 Critical Kills . | . . . . Critical Parts Destroyed . | . . . . Critical Strikes 3 | . . 1 2 Burn 1 | . . . 1 Blast 2 | . . 1 1 Melee Attacks 4 | . . 1 3 Impact . | . . . . Slashing 4 | . . 1 3 Piercing . | . . . . Sneak Attacks . | . . . . Combat Hostiles . | . . . . Follow-up Attacks . | . . . . Damage Inflicted 1747 | . 1058 151 538 Guns 1396 | . 1058 83 255 Cannons 306 | . . 68 238 Explosions . | . . . . Melee 23 | . . . 23 Ramming . | . . . . Kinetic 1244 | . 629 122 493 Thermal 447 | . 396 29 22 Explosive . | . . . . Electromagnetic 33 | . 33 . . Impact . | . . . . Slashing 23 | . . . 23 Piercing . | . . . . Highest Corruption 3 | . 3 3 3 Average Corruption 2 | . 2 3 3 Corruption Purged . | . . . . Corruption Blocked . | . . . . Effects 70 | . 15 3 52 Message Errors 19 | . 5 1 13 Matter Fused 22 | . 4 1 17 Heat Flow Errors 9 | . 3 . 6 Energy Discharges 5 | . . 1 4 Parts Rejected 1 | . . . 1 Parts Fused 1 | . . . 1 Data Loss (minor) 6 | . 1 . 5 Data Loss (major) 3 | . 1 . 2 Misfires 1 | . . . 1 Alerts 2 | . 1 . 1 Weapon Failures 1 | . . . 1 Overload Shots . | . . . . Overflow Damage . | . . . . Projectiles . | . . . . Explosions . | . . . . Melee . | . . . . Knockbacks 3 | . . 1 2 Impact . | . . . . Kinetic 3 | . . 1 2 Secondary . | . . . . Self-Inflicted Damage . | . . . . Shots . | . . . . Rammed . | . . . . Targets Rammed . | . . . . Kicked . | . . . . Crushed . | . . . . Highest Temperature 279 | . 279 68 228 Average Temperature 71 | . 77 20 98 Received Heat Transfer 495 | . 414 24 57 Siege Activations . | . . . . Robots Corrupted . | . . . . Combat Hostiles . | . . . . Parts Fried . | . . . . Impact Corruptions . | . . . . Robots Melted . | . . . . Combat Hostiles . | . . . . Parts Melted 4 | . 3 1 . Heat Transferred 1319 | . 925 74 320 Parts Sabotaged . | . . . . Parts Stolen . | . . . . Parts Stripped . | . . . . Power Chain Reactions . | . . . . Alert | -11 -10 -10 -10 ------- Run | Yrd Mat Min Sub Peak Influence 258 | . 258 104 . Initial 39 | . . 39 . Average 93 | . 97 96 . Maximum Alert Level 1 | . 1 . . Low Security (%) 96 | 100 95 100 . Level 1 3 | . 4 . . Level 2 . | . . . . Level 3 . | . . . . Level 4 . | . . . . Level 5 . | . . . . High Security . | . . . . Max Security . | . . . . Squads Dispatched 3 | . 3 . . Investigation 2 | . 2 . . Extermination . | . . . . Reinforcement 1 | . 1 . . Assault . | . . . . Garrison . | . . . . Intercept . | . . . . Searches Triggered . | . . . . Construction Impeded . | . . . . Haulers Reinforced . | . . . . Active Scanning Responses . | . . . . Cargo Convoy Interrupts . | . . . . Stealth | -11 -10 -10 -10 --------- Run | Yrd Mat Min Sub Distress Signals 3 | . 3 . . Communications Jammed . | . . . . Distress Signals . | . . . . Times Spotted 51 | . 36 4 11 Peak Tracking Total 4 | . 4 3 2 Tactical Retreats 4 | . 2 . 2 Traps | -11 -10 -10 -10 ------- Run | Yrd Mat Min Sub Traps Triggered 3 | . 2 . 1 Indirectly . | . . . . Trap Hack Attempts . | . . . . Triggered . | . . . . Disarmed . | . . . . Reprogrammed . | . . . . Reused . | . . . . Traps Extracted . | . . . . Installed . | . . . . Triggered . | . . . . Machines | -11 -10 -10 -10 ---------- Run | Yrd Mat Min Sub Machines Disabled . | . . . . Max in Single Turn . | . . . . Machines Repaired . | . . . . Machines Dismantled . | . . . . Machines Sabotaged . | . . . . Overloaded Fab Kills . | . . . . Hacking | -11 -10 -10 -10 --------- Run | Yrd Mat Min Sub Machines Accessed 8 | . 7 . 1 Terminals 7 | . 7 . . Fabricators . | . . . . Repair Stations . | . . . . Recycling Units . | . . . . Scanalyzers . | . . . . Garrison Access . | . . . . Total Hacks 29 | . 25 . 4 Successful 14 | . 10 . 4 Failed 15 | . 15 . . Catastrophic 1 | . 1 . . Database Lockouts . | . . . . Manual 21 | . 21 . . Terminals 25 | . 25 . . Fabricators . | . . . . Repair Stations . | . . . . Recycling Units . | . . . . Scanalyzers . | . . . . Garrison Access . | . . . . Terminal Hacks 8 | . 4 . 4 Record 4 | . . . 4 Prototype ID Bank 2 | . 2 . . Branch Access Points 1 | . 1 . . Alert Level 1 | . 1 . . Fabricator Hacks . | . . . . Repair Station Hacks . | . . . . Recycling Unit Hacks . | . . . . Scanalyzer . | . . . . Garrison Access Hacks . | . . . . Unauthorized Hacks 6 | . 6 . . Terminals 6 | . 6 . . Botnet 6 | . 6 . . Fabricators . | . . . . Repair Stations . | . . . . Recycling Units . | . . . . Scanalyzers . | . . . . Garrison Access . | . . . . Data Cores Recovered . | . . . . Used . | . . . . Hacking Detections 7 | . 7 . . Full Trace Events 2 | . 2 . . Feedback Events . | . . . . Feedback Blocked . | . . . . Robot Schematics Acquired . | . . . . Robots Built . | . . . . Authchips . | . . . . Time . | . . . . Total Robot Build Rating . | . . . . Part Schematics Acquired . | . . . . Parts Built . | . . . . Authchips . | . . . . Time . | . . . . Total Part Build Rating . | . . . . Parts Repaired . | . . . . Time . | . . . . Parts Recycled . | . . . . Recycled Matter . | . . . . Retrieved Matter . | . . . . Retrieved Components . | . . . . Parts Scanalyzed . | . . . . Part Schematics Acquired . | . . . . Parts Damaged . | . . . . Bothacking | -11 -10 -10 -10 ------------ Run | Yrd Mat Min Sub Used RIF Installer . | . . . . Robots Hacked . | . . . . Non-combat . | . . . . Combat . | . . . . Robot Hacks Applied . | . . . . Relay Couplers Released . | . . . . Fabnet Peak Effective % . | . . . . Robots Rewired . | . . . . Allies Hacked . | . . . . Hacks Repelled . | . . . . Allies | -11 -10 -10 -10 -------- Run | Yrd Mat Min Sub Total Allies . | . . . . Largest Group . | . . . . Highest-Rated Group . | . . . . Highest-Rated Ally . | . . . . Total Orders . | . . . . Ally Attacks . | . . . . Total Damage . | . . . . Kills . | . . . . Allies Corrupted . | . . . . Allies Melted . | . . . . Intel | -11 -10 -10 -10 ------- Run | Yrd Mat Min Sub Robot Analysis Total . | . . . . Derelict Logs Recovered 2 | . . . 2 Drone Launches . | . . . . Drone Recoveries . | . . . . Exploration | -11 -10 -10 -10 ------------- Run | Yrd Mat Min Sub Turns Passed 4898 | 94 1939 176 2689 Spaces Moved 2947 | 63 961 78 1845 Core 24 | 24 . . . Treads 1558 | 39 961 78 480 Legs . | . . . . Wheels 1365 | . . . 1365 Hover . | . . . . Flight . | . . . . Fastest Speed 50 | 50 160 160 115 Average Speed 142 | 118 160 160 132 Slowest Speed 160 | 160 160 160 160 Overloaded Moves . | . . . . Propulsion Burnouts . | . . . . Robots Hopped . | . . . . Cave-ins Triggered . | . . . . Exploration Rate (%) 44 | 4 96 11 68 Regions Visited 3 Branch Regions 2 Pre-discovered Areas . | . . . . Known Exits Taken 1 | . 1 . . Unknown Exits Taken 2 | 1 . 1 . Scrap Searched 13 | . . . 13 Spaces Dug . | . . . . Terrain Destroyed . | . . . . Melee . | . . . . Projectile . | . . . . AOE . | . . . . Terrain Rammed . | . . . . Walls Destroyed . | . . . . Machines Disabled . | . . . . Actions | -11 -10 -10 -10 --------- Run | Yrd Mat Min Sub Total 3430 | 80 1230 99 2021 Wait 259 | 2 151 . 106 Move 2944 | 62 960 77 1845 Hop . | . . . . Pick Up 34 | 9 12 1 12 Fast Attach 6 | 3 3 . . Attach 14 | 3 2 1 8 Detach . | . . . . Swap 17 | 1 7 1 8 Drop 18 | . 11 . 7 Fire 134 | . 84 18 32 Melee 4 | . . 1 3 Ram . | . . . . Kick . | . . . . Crush . | . . . . Escape Stasis . | . . . . Rewire . | . . . . Trap . | . . . . Miscellaneous . | . . . . Route ------- -11/Scrapyard -10/Materials (discovered 5 exits: [*Mat x3] / *Min x2) -10/Mines -10/Subcaves History --------- Turn | Location | Event 2 | -11/Scrapyard | Discovered new exit (range 16) 95 | -11/Scrapyard | Entered Materials 302 | -10/Materials | Build established: Mutant 701 | -10/Materials | Discovered new exit (range 15) 900 | -10/Materials | Core integrity fell below 50% 1125 | -10/Materials | Build established: Scavenger-Mutant 1203 | -10/Materials | Discovered new exit (range 10) 1281 | -10/Materials | Discovered new exit (range 9) 1562 | -10/Materials | Discovered new exit (range 15) 1762 | -10/Materials | Discovered new exit (range 12) 1831 | -10/Materials | Identified exit to Mines 2034 | -10/Materials | Entered Mines 2050 | -10/Mines | Discovered new exit (range 16) 2210 | -10/Mines | Entered Subcaves 2382 | -10/Subcaves | Learned Materials stockpile data 2458 | -10/Subcaves | Learned Materials interactive machine intel 2466 | -10/Subcaves | Disturbed a concealed Subdweller 2534 | -10/Subcaves | Build established: Mutant 2928 | -10/Subcaves | Core integrity fell below 20% 3240 | -10/Subcaves | A swath of the cavern ceiling suddenly collapsed 3273 | -10/Subcaves | Curiously followed by a Cobbler waking with a query about "LVR3C" 3320 | -10/Subcaves | Visited Clippyterm 3323 | -10/Subcaves | Learned 40 Factory zone layouts 3323 | -10/Subcaves | Learned Factory fabricator intel 3351 | -10/Subcaves | Shifting Twisted Machinery released Scrap Shield 3352 | -10/Subcaves | Shifting Twisted Machinery released Sub. Monowheel 4792 | -10/Subcaves | A swath of the cavern ceiling suddenly collapsed 4899 | -10/Subcaves | Destroyed by PE-9CN(R) with Subdweller Beam Cannon Last Messages --------------- 04417_ System corrupted: Heat flow error (+196). 04465_ System corrupted: Matter fused (-5). 04502_ System corrupted: Matter fused (-10). 04522_ 1/ZNPEYZARA5BVKXGWLDIVONQK:IBDN5OS2CU 04614_ System corrupted: Substantial component data lost. 04647_ System corrupted: Matter fused (-5). 04668_ System corrupted: Component data lost. 04715_ ZD6UFFUCPZTTZKNU4, 04822_ System corrupted: Matter fused (-5). 04825_ Acquired 7 matter. 04832_ QZ-KP6(O) collects matter. 04898_ PE-9CN(R) Disposable Heat Sink blasted off. Map ----- +----------------------------------------------------+ | ?????????????# #??????????????????????# ### | | ?????????????## ##??????????????????????# #??# | | ??????????????# ##???? ????????????????## "#### | | ?????????????## ##???# ?????????????????####"#"" | | ?????????????# #??? ?????????????????????#"#" | | ?????????????## ##??? ??????????????????????#" | | ????????##?### #??? #??????????????????????## | | ???????##$#$?# #???# ##????????????????####?##" | | ????????$& ?# #???# #???????????????## "###"" | | ?????????"&### ##??## #???????????????# #"#" "" | | ???????### ## #### # ???####?????????# "" "## | | ???????# # ### ## ##?## #?????????# """#? | | ???????# " " # ## #?# ###???????## ""##? | | ??????## # ## #?# ##??????## #"## | | ??????# #### ### # #?# ##????## ### | | ??????# #### ### #### ##?### ## | | ??????## ## # # # ## ### | | ???????# | | ???????## ###### | | ????????# ##???## #### ## | | ????????# ##??## #??# ### ## | | ????????# #### #??# ####?## | | ???????## ## #??## ##?????## ## | | ???????# ## #???## ##???????## ### | | ???????# ## #### ##?######?????????# ##?? | | ???????# # #?####??#@ #???????????# ####??? | | ???????## ### ###???####R####????????## #?????? | | ???????# ##### ;;;# #????????# ##?????? | | ???????## ## "#"##%# #????????# #??????? | | ????????# """#### #????????# ##??????? | | ????????##### #"##????????????## ##??????? | | ????????????## ###????????????## #??????? | | ?????????????## ##??????????????# ##??????? | | ??????????????# #???????????????# ###???????? | | ??????????????## #"#???????????????####?????????? | | ???????????????######????????????????????????????? | | ?????????????????????????????????????????????????? | | ?????????????????????????????????????????????????? | | ?????????????????????????????????????????????????? | | ?????????????????????????????????????????????????? | | ?????????????????????????????????????????????????? | | ?????????????????????????????????????????????????? | | ?????????????????????????????????????????????????? | | ?????????????????????????????????????????????????? | | ?????????????????????????????????????????????????? | | ?????????????????????????????????????????????????? | | ?????????????????????????????????????????????????? | | ?????????????????????????????????????????????????? | | ?????????????????????????????????????????????????? | | ?????????????????????????????????????????????????? | +----------------------------------------------------+ Best States ------------- Heat Dissipation 35 Energy Generation 15 Energy Capacity 250 Matter Stores 300 Matter Capacity 300 Sight Range 21 Terrain Scan Range 16 Terrain Scan Density 10 Armor Coverage 150 Evasion (%) 50 Recoil Reduction 2 Item Schematics ----------------- None Robot Schematics ------------------ None Fabricated ------------ Nothing Alien Tech Used ----------------- None Achievements -------------- None Challenges ------------ None Game ------ Seed NodeReinforcedSheargun Manual? 0 Play Time 00:31:30 Cumulative 51.4 hours Start 2024.11.26 @ 23:49:42 End 2024.11.27 @ 00:20:02 Sessions 1 Manual Loads 0 Difficulty Rogue Special Mode None Game No. 59 Rogue 59 Adventurer 0 Explorer 0 Win Type - Total 0 Types 0/0/0/0/0/0/0/0/0 Lore% 9 Gallery% 28 Achievement% 28 Wizard Run 0 Options --------- Layout 2 ASCII 0 Keyboard 0 Movement Mouse Keybinds 0 Fullscreen 2 Font 16/SmallcapsGlow Map View 55x47 Zoom Use 10% Tactical HUD 1 Map Filters NONE Filters NONE Steam 1 RUN: d97381a2-a86a-4182-8cf7-d59c60269190